{"text_format":"1","workbook":"xlsx","n_sheets":3,"sheets":["БАЗА","Меню групп","Лист2"],"not_rendered":{"charts":0,"images":4,"macros":1,"external_links":0,"defined_names":7,"comments":0,"pivot_tables":0},"unopened":[],"bounds":{"document_bytes":16777216,"sheet_cells":100000,"rows_first":2000,"rows_last":500,"rows_between":2000,"halvings":0,"cell_chars":16384,"cell_head_chars":4096},"cells_cut":0,"cells_raw":0,"read":"whole","date_system":"1900"}

{"sheet":"БАЗА","index":0,"n_rows":804,"n_cols":3,"rows_kept":804,"cut":false,"hidden":false,"merged":[]}
["БЛЮДА ИЗ ЯИЦ "," "," "]
[" Омлет из 2-х яиц",110,100]
[" Омлет с  зелёным  горошком","110/55",100]
[" Омлет с ветчиной","110/55",110]
[" Омлет с колбасой ","110/55",110]
[" Омлет с колбасой и зел .горошком","110/55",110]
[" Омлет с макаронами","110/55",100]
[" Омлет с сосисками","110/55",120]
[" Омлет фаршированый фасолью","110/55",100]
[" Рулет из омлета с овощами.",110,140]
[" Яйцо вареное.",40,40]
[" Яйцо перепелиное ",40,30]
[" Яйцо под майонезом","40/20",40]
[" Яичница из 2-х яиц на крутоне",114,100]
[" Яичница из 2-х яиц",114,100]
[" Яичница из 3-х яиц с помидорами и беконом",150,170]
[" Яичница из 3-х яиц с помидорами",150,150]
["ВЕГЕТАРИАНЦЫ группа"," "," "]
[" Авокадо.",1,0.8]
[" Баклажаны  запеченые с помидорами и сыром",150,100]
[" Баклажаны жареные со св. перцем",150,130]
[" Баклажаны жареные со св. помидорами ",150,130]
[" Баклажаны с рисом.",170,130]
[" Баклажаны, запеч. со сметаной","300/2",260]
[" Блины  на воде с джемом без яиц","120/50",100]
[" Бурый отварной рис  ",130,80]
[" Винегрет ",200,50]
[" Горох отварной  ",130,50]
[" Грецкий орех ",10,25]
[" Гречка с луком и морковью",285,70]
[" Гречка с луком и морковью и кабачками ",400,110]
[" Гречка с луком и морковью помид. перцем со специям",400,140]
[" Запеченые овощи",150,70]
[" Изюм ",15,8]
[" Икра овощная",200,90]
[" Имбирный напиток",200,35]
[" Кабачки жареные",150,80]
[" Кабачки жареные  с помидорами",150,100]
[" Кабачки запеченые с помидорами и сыром",150,100]
[" Кабачки и цветная капуста запечёные в сметне",150,110]
[" Кабачково-манные драники со сметаной ",120,90]
[" Капуста брокколи запеченая с сыром",150,100]
[" Капуста брокколи припущеная",150,90]
[" Капуста тушеная с грибами",200,120]
[" Картофель запеченый в кожуре",194,70]
[" Каша овсяная +4 злака  ",200,80]
[" Каша овсяная с корицей и изюмом",400,90]
[" Каша пшенная с тыквой,изюмом",400,90]
[" Каша рисовая по-крестьянски",300,90]
[" Каша рисовая с тыквой ",200,90]
[" Каша ячневая вязкая.",200,70]
[" Котлеты капустные","150/25",100]
[" Курага  ",15,30]
[" Лечо",150,90]
[" Лобио из стрючковой фасоли ",150,100]
[" Молоко с куркумой.",150,40]
[" Морковь,кабачки,помидоры,+зелень",150,95]
[" Обжареная свекла с адыгейским сыром ",200,160]
[" Овощи -микс",150,120]
[" Овощи на пару",200,120]
[" Овощное  рагу с баклажаном",200,110]
[" Овощное рагу *",200,120]
[" Овощной бульон ","400/3",80]
[" Овсянка с болгарским перцем и брынзой",250,120]
[" Оладьи из кабачков",120,100]
[" Оладьи из овсянки с  бананами  и джемом ","120/50",100]
[" Оладьи из овсяной каши с яблоком с джемом ","120/50",90]
[" Оладьи на кефире с джемом без яиц","120/50",100]
[" Отварная свекла, морковь на листике салата",200,90]
[" Отварная свекла.",150,30]
[" Печенье овсяно-морковное",100,30]
[" Плов c изюмом",300,100]
[" Плов вегетарианский",300,140]
[" ПЛОВ с грибами.",300,145]
[" Плов с картошкой и петрушкой",250,90]
[" Плов с овощами",300,75]
[" Постная свекла с черносливом","150/1",100]
[" Рассольник \"Петербургский\".Вега","300\\2",90]
[" Рис \"Басмати\".",1,0.4]
[" Рис с овощами",300,100]
[" Рис со специями 150 гр",300,70]
[" Рис со специями 300 гр  ",300,95]
[]
[]
[" Салат \"Метёлка\" (Без капусты).  ",150,85]
[" Салат \"Метелка\"",150,85]
[" Салат \"Зеленый\"",150,100]
[" Салат из  кит. кап.с яблоком и морковью  ",150,90]
[" Салат из  отвасвеклы с морк. и огурцом  ",150,80]
[" Салат из кукурузы с перцем с маслом   ",150,90]
[" Салат из моркови, яблок, изюма, лимона, масла  ",150,80]
[" Салат из моркови, яблок, лимона, масла  ",200,65]
[" Салат из св. кап.,с морковью и  яблоком с маслом  ",150,60]
[" Салат из сельдирея и кит. кап.  ",150,90]
[" Салат с редисом  ",200,120]
[" Свежие овощи и зелень 100/100/35  ","100/100/35",135]
[" Соус из лука  ",15,35]
[" Соус соевый 20 гр",20,15]
[" Суп-крем из тыквы (йоги)  ",300,80]
[" Суп   с фасолью (ВЕГА)  ","300/2",100]
[" Суп вег. с н\\о картофелем  ","400/3",120]
[" Суп из чечевицы с овощами  ",300,120]
[" Суп овощной вегетарианский c з/о  ","300\\2",70]
[" Творог со сметаной.  ",150,80]
[" Тушенные овощи.  ",150,100]
[" Тыква ЗАПЕЧЕНАЯ (200 ГР)  ",200,110]
[" Фасоль отварная с луком и томатом.  ",200,80]
[" Фасоль тушеная с морковью.  ",170,95]
[" Фасоль тушеная с перцем и овощами  ",150,100]
[" Чай йоговский.  ",150,10]
[" Чернослив 15 г  ",15,5]
["ВТОРЫЕ ГОРЯЧИЕ БЛЮДА   "," "," "]
[" Азу из говядины  ",180,150]
[" Азу из бедра кур  ","100/50",150]
[" Биточки с овощами (кукуи зел.горошек)  ",120,140]
[" Бифштекс \"По - Деревенски\"  ","100/20",410]
[" Бифштекс рубленый  ",100,165]
[" Бифштекс рубленый с яйцом  ","100/40",190]
[" Ватрушка картофельная \"Солнышко\"  ",200,190]
[" Гамбургер  ","100/80",170]
[" Гамбургер ( с котлетой)  ","100/80",150]
[" Гамбургер из говядины  ","100/80",150]
[" Голубцы из говядины  ","130/50",160]
[" Гуляш  из говядины   ","75/100",170]
[" Кабачки фаршированые мясом  ",130,180]
[" Картофельная запеканка фаршированная мясом  ",300,180]
[" Мясо отварное  ",75,130]
[" Мясо тушеное  ","100/100",160]
[" Мясо тушеное с кукурузой и фасолью  ","100/75",150]
[" Мясо\"По-Французски\" ",150,400]
[" Паста с говядиной  ",300,140]
[" Паста с мясом и перцем  ",300,140]
[" Пельмени домашние отварные с говядиной со сметаной  ","200/50/1",180]
[" Пельмени домашние отварные с майонезом  ","200/50/1",180]
[" Рис с мясом и перцем  ",300,140]
[" Тефтели из говядины  ","115/75",150]
["БЛЮДА ИЗ МЯСА ПТИЦЫ   "," "," "]
["  Бедра кур туш. с морковью  ","110/75",130]
[" Азу из бедра кур  ","110/75",140]
[" Азу из куринных грудок  ","110/75",140]
[" Биточки \"Любительские\"  ",120,140]
[" Биточки из нежного куриного филе  ","100/1",120]
[" Грудка куриная отварная  ",150,150]
[" Жаркое с куриным бедром   ",350,170]
[" Жаркое с куриным филе","350",170]
[" Зразы из индейки с сыром   ",110,140]
[" Индейка \"По -Московски\"",130,200]
[" Кебаб из Бедра куриного фри  ",120,180]
[" Кебаб из цыплёнка фри",120,180]
[" Котлета \"Загадка\"фри",120,150]
[" Котлета \"По-Киевски\" ",170,200]
[" Котлета \"Пожарская\"",100,180]
[" Котлета по -киевски с маслом и сыром  ",170,180]
[" Котлеты \"Нежные\"  ",100,130]
[" Котлеты \"Нежные\"(Бедро индейки)  ",100,130]
[" Котлеты \"Нежные\"(Бедро)  ",100,130]
[" Котлеты \"Особые\" из индейки  ",100,140]
[" Котлеты \"Сочные\" из индейки",100,190]
[" Котлеты куриные  ",100,120]
[" Котлеты куриные (ИЗ БЕДРА)  ",100,120]
[" Куринные грудки  с черносливом  ",150,140]
[" Куриное филе с ветчиной и сыром.  ",150,140]
[" Курица жареная  ",150,150]
[" Курица жареная с чесноком  ",200,220]
[" Курица фаршированая  \"Галантин\"  ",1,"1 450,00 "]
[" Наггетсы куриные   ",120,130]
[" Окорочка жареные",170,130]
[" Окорочка куриные тушеные (обрезь)",150,130]
[" Плов с курицей (Бедро)  ","300/2",170]
[" Плов с курицей (Филе грудки)  ","300/2",170]
[" Рагу овощное с курицей  ",300,140]
[" Рулетики из ку окороч. фарш..ветч.и сыр  ",150,150]
[" Рулетики из куриных окорочков фаршированыегрибами  ",150,145]
[" Солянка из бедра куриного со сладким перцем и морк  ",170,150]
[" Солянка из филе куриного со сладким перцем и морк  ",170,170]
[" Филе куриное в яйце  ",150,170]
[" Филе куриное с ананасом  ",150,170]
[" Филе куриное с сы и помид.  ","150/2",190]
[" Чахохбили из курицы  ","150/30",130]
[" Чахохбили из окорочков  ","150/30",110]
[" Шашлык из куриных грудок .  ",100,100]
[" Шницель \"Арбатский\"  ",140,180]
[" Шницель из филе индейки  ",110,190]
["БЛЮДА ИЗ РЫБЫ   "," "," "]
[" Биточки Рыбные из кеты  ",120,140]
[" Бризоль из  судака  ",120,200]
[" Бризоль из трески   ",120,200]
[" Горбуша запеченая с луком и сыром  ",120,165]
[" Картофельная запеканка фаршированная сёмгой  ",250,220]
[" Кета запеченая с луком и сыром  ",120,170]
[" Кольца кальмаров фри  ",120,140]
[" Рыба  в  кляре.(Треска)  ","150/1",190]
[" Рыба \"По-Фермерски\" (Треска)  ","140/1",250]
[" Рыба в омлете (горбуша)из филе   ","1/125",150]
[" Рыба жареная (треска)из филе   ","1/125",160]
[" Рыба под маринадом (Треска )  ",150,170]
[" Рыбные тефтели (филе трески)  ","115/75",150]
[" Семга жаренная с лимоном  ","125/6/1",430]
[" Судак в собственном соку  ","125/100/100",310]
[" Судак припущеный  ",75,170]
[" Судак, запеч. с майонезом  ","130/2",280]
[" Треска  запеченая с луком и сыром  ",120,165]
[" Филе горбуши под белым соусом  ",120,165]
[" Филе кеты  под белым соусом  ",120,165]
[" Филе пикши под белым соусом  ",120,160]
[" Филе трески под белым соусом  ",120,170]
[" Шашлык из семги  ","150/135/2",490]
[" Шницель рыбный из горбуши  ",125,150]
[" Шницель рыбный из пикши  ",125,160]
[" Шницель рыбный из трески (Филе)  ",125,160]
["БЛЮДА ИЗ СВИНИНЫ   "," "," "]
["  Отбивная из свин шейки  ",130,180]
["  Свинина жареная с луком  ",150,130]
[" Бекон Жареный  ",300,700]
[" Жаркое \"По - Домашнему\" в горшочке  ",350,310]
[" Жаркое по - домашнему  ",300,180]
[" Капуста тушеная с мясом  ",250,200]
[" Колбаса жареная   ",100,100]
[" Котлеты \"Домашние\"  ",100,200]
[" Мясо по-французски ( из свинины )  ",150,250]
[" Паста \"Карбонара\"  ",300,300]
[" Пельмени домашние запеч. в грибном соусе  ","300/1",220]
[" Пельмени домашние отварные со сметаной  ","200/50/1",200]
[" Плов со свининой  ","300/2",220]
[" Поджарка свинная из св. шейки   ",150,150]
[" Поджарка свинная  ",150,140]
[" Рулет мясной с луком и яйцом  ",130,140]
[" Рулет мясной с рисом и яйцом  ",130,140]
[" Свинина \"Праздничная\"  ","150/1",300]
[" Свинина духовая  ",150,200]
[" Свинина отбивная  ",130,200]
[" Сосиски отварные  ","115/30",110]
[" Сосиски с зеленым горошком  ","105/50/2",120]
[" Стейк из шейки с овощами  ","130/50",270]
[" Фаршированые шампиньоны с беконом  ",170,195]
[" Шашлык \"По - Московски\"  ","125/165",420]
[" Шашлык из свинины.  ",100,150]
[" Эскалоп \"Нежность\"  ",130,200]
["ГАРНИРЫ   "," "," "]
[" Гречка отварная  ","150/5",70]
[" Гречка с луком и грибами.  ",250,170]
[" Капуста тушенная.  ",200,60]
[" Капуста цветная обжаренная в сухарях фри  ",200,140]
[" Картофель \"Пикантный\"  ",200,90]
[" Картофель \"По-Деревенски\"",130,130]
[" Картофель жареный с овощами  ","180/40",100]
[" Картофель жареный  ","200/40",100]
[" Картофель оварной  с луком фри  ","180/30",100]
[" Картофель отварной с маслом   ","180/5",90]
[" Картофель отварной с овощами  ","180/5/40/1",100]
[" Картофель фри  ",135,130]
[" Картофель,жаренный с грибами.  ",300,190]
[" Картофельное пюре  ","180/2",90]
[" Картофельное пюре с овощами  ","180/5/40",100]
[" Картофельные шарики   ",130,130]
[" Луковые кольца  ",100,100]
[" Макароны отварные  ",150,70]
[" Макароны с сыром  ",200,100]
["ОВОЩИ ГРИЛЬ  ",150,250]
[" Овощной сборный  ",250,120]
[" Пальчики картофельные фри с сыром  ",120,100]
[" Рис-ризотто  ","150/1",90]
[" Рис отварной  ",150,70]
[" Стрючковая фасоль жареная  ","200/40",70]
[" ГОРЯЧИЕ ЗАКУСКИ   "," "," "]
[" Баклажаны  \"Павлиний хвост\"  ",200,200]
[" Баклажаны, запеч. со сметаной  ","300/2",260]
[" Блинные мешочки с куриным жульеном  ","150/5",200]
[" Блинные рулетики  с семгой  ","75/50",200]
[" Блины  без наполнителя (К)  ","150/50",80]
[" Блины  с творогом  ","150/50",95]
[" Блины с ветчиной и сыром  ","150/50",100]
[" Блины с джемом  ","150/50",100]
[" Блины с икрой кетовой  ","150/15",185]
[" Блины с капустой  ","100/50",100]
[" Блины с медом  ","150/50",110]
[" Блины с мясом  ","100/50",150]
[" Блины с семгой  ","150/30",175]
[" Блины со сгущ. молоком  ","150/50",100]
[" Блины со сметаной   ","150/50",100]
[" Горячий бутерброд (1 шт) с с яйцом и колбасой   ",60,100]
[" Горячий бутерброд (1 шт) с сыром и колбасой   ",60,100]
[" Горячий бутерброд (2 шт) с с яйцом и колбасой   ",120,140]
[" Горячий бутерброд с ветчиной и помидорами  ","2/100",170]
[" Горячий бутерброд с помидором и сыром  ","2/100",110]
[" Горячий бутерброд с сыром   ",100,100]
[" Горячий бутерброд с шейкой и помидорами  ","2/100",170]
[" Грибы запеченые в сметане   ",85,150]
[" Жульен с грибами и курицей   ",85,150]
[" Запеканка творожная  б/наполнителя  ",120,85]
[" Запеканка творожная с джемом  ","120/50",110]
[" Запеканка творожная со сгущенкой  ","120/50",110]
[" Запеканка творожная со сметаной  ","120/50",110]
[" Капуста цветная обжаренная в сухарях фри  ",200,140]
[" Оладьи со сгущ. молоком  ","120/50",100]
[" Сырники без наполнителя  ","150/5",110]
[" Сырники с медом   ","150/50",150]
[" Сырники с джемом  ","150/50",150]
[" Сырники со сгущ. молоком  ","150/50",130]
[" Сырники со сметаной   ","150/50",130]
[" Черный хлеб поджа с чесноком  ",60,35]
[" ГОТОВЫЕ ЗАВТРАКИ  "," "," "]
[" Кукурузные хлопья.  ",50,50]
[" Мюсли фруктовые.  ",100,55]
[" ДЕСЕРТЫ  "," "," "]
[" Абрикосы  ",1,0.36]
[" Ананас консерв.к  ",1,0.4]
[" Ананас.  ","1 гр",0.3]
[" Апельсины.  ",1,0.21]
[" Арбуз.  ",1,0.08]
[" Ассорти фруктовое   ",150,170]
[" Бананы мини.  ",1,0.24]
[" Бананы.  ",1,0.2]
[" Виноград.  ",1,0.4]
[" Грецкий орех.  ",1,1.8]
[" Груши.  ",1,0.3]
[" Дыня.  ",1,0.1]
[" Изюм.  ",50,25]
[" Киви  ","1 гр",0.3]
[" Клубника  ","1 гр",0.85]
[" Клюква.  ",1,0.6]
[" Курага.  ",50,25]
[" Лимоны.  ",1,0.38]
[" Мандарины  ",1,0.3]
[" Мороженое с джемом   ","100/25",130]
[" Мороженое с орехами   ","100/15",130]
[" Мороженое со сливками   ","100/50",170]
[" Мороженое.к  ",100,85]
[" Персик косерв.  ",1,0.5]
[" Персики.  ",1,0.25]
[" Салат фруктовый   ",250,200]
[" Слива.  ",1,0.3]
[" Черешня  ",1,0.75]
[" Чернослив со сливками   ",145,220]
[" Чернослив со сметаной   ",145,160]
[" Чернослив.  ",1,0.5]
[" Шоколадный фонтан  ",40,50]
[" Яблоки  ",1,0.25]
[" Яблоки резаные(Шведка).  ",50,15]
[" Яблоки с сахаром и корицей  ",1,0.45]
[" ДЕТСКОЕ МЕНЮ  "," "," "]
["  Рассольник \"Петербургский\".(дет.пит.)  ","300\\2",100]
[" Азу из мяса отварного  ",100,170]
[" Беф-строганов   из мяса отварного  ","100/50",150]
[" Биточки рубленые куриные  ","100/1",120]
[" Ватрушка с повидлом (Дет.пит).  ",100,30]
[" Вермишель  молочная  ",210,70]
[" Винегрет овощной с раст. маслом  ",200,70]
[" Запеканка  картофельная с  мясом  ",320,160]
[" Запеканка творожная с изюмом(Дети)  ","120/50",110]
[" Какао с молоком (Дет. меню)  ",200,25]
[" Капуста цветная отварная(Д.М.)  ",150,100]
[" Картофель отварной с маслом(Дет.пит.)  ","265/5",70]
[" Картофельное пюре  (Дет.меню)  ",200,60]
[" Компот из сухофруктов  ",200,25]
[" Котлета мясная рубленая  ",100,140]
[" Куры отварные(дет.пит.)  ",120,100]
[" Макароны отварные(Дет.пит.)  ",175,50]
[" Макароны с сыром запеченые(Дети)  ",200,100]
[" Мясо отварное(д.м.)  ",100,130]
[" Мясо тушеное(д.м.)  ","100/100",150]
[" Овощное  рагу с баклажаном(ДЕТИ)  ",200,100]
[" Овощное рагу (Дет.пит.)  ",200,110]
[" Омлет из 2-х яиц запеченый с сыром (Дети)  ",110,100]
[" Птица отварная   ",130,120]
[" Рагу овощное(Дети)  ",200,100]
[" Рыба (треска) филе припущеная   ",110,150]
[" Рыба (треска) филе тушеная с овощами  ",110,150]
[" Салат зелёный с помид.и огурцом на рст.масле  ",100,70]
[" Салат из помидоров с перцем свежим  ",100,80]
[" Салат из св. моркови с изюмом  ",100,50]
[" Салат из св. овощей с маслом(Дет)  ","150/1",70]
[" Салат из св. помидор с растит. маслом  ",100,80]
[" Салат из свеклы с черносливом с маслом (Дет.меню)  ",100,70]
[" Салат со св.огурцом и раст.маслом  ",100,70]
[" Суп -пюре из разных овощей(Дет. меню)  ",300,100]
[" Суп гороховый (Дет.пит.)  ","300/2",110]
[" Тефтели мясные  ",100,170]
[" Шницель рыбный  натуральный  ",120,160]
[" Щи из свежей капусты со сметаной(Дет.пит.)  ","300/30/2",120]
[" ДИЕТА БЕССОЛЕВАЯ  "," "," "]
[" Горячее овощное  "," "," "]
[" Кабачки фаршированные  ",250,130]
[" Капуста тушенная б/соли  ",200,50]
[" Капуста цветная отварная  ","250/5",130]
[" Рагу овощное  ",200,80]
[" Рыба  припущеная  ",50,65]
[" Каши  "," "," "]
[" Гречка рассыпчатая.  ",200,35]
[" Гречневая вязкая  ",200,25]
[" Овсяная вязкая  ",200,25]
[" Пшенная вязкая с тыквой (ВЕГА)  ",300,90]
[" Напитки.  "," "," "]
[" Напиток из клюквы.к  ",200,30]
[" Наполнители к кашам  "," "," "]
[" Изюм .к  ",1,0.8]
[" Курага .  ",1,0.9]
[" Чернослив .  ",1,0.77]
[" Салаты вегетарианские  "," "," "]
[" Отварная  морковь  c раст маслом.  ",165,50]
[" Салат \"Витаминный\"  ",200,70]
[" Салат из моркови с черносливом  ",200,55]
[" Салат из моркови с яблоками.  ",200,40]
[" Салат из св. овощей  ",200,110]
[" Салат из свеклы с черносливом .  ",200,70]
[" Супы вегетарианские  "," "," "]
[" Борщ  ",200,25]
[" Суп овощной  ",200,50]
[" Щи из свежей капусты  ",200,30]
[" КАШИ   "," "," "]
[" Каша \"Боярская\"  ",190,70]
[" Каша \"Дружба\"  ",190,70]
[" Каша гречневая вязкая   ",190,70]
[" Каша гречневая вязкая на воде  ",190,70]
[" Каша гречневая молочная  ",190,70]
[" Каша из овсяных хлопьев \"Геркулес\"  ",190,70]
[" Каша манная вязкая   ",190,70]
[" Каша пшенная вязкая   ",190,70]
[" Каша рисовая вязкая   ",190,70]
[" КОНДИТЕРСКИЕ И КУЛИНАРНЫЕ ИЗДЕЛИЯ  "," "," "]
[" Булка французская  ",1,17]
[" Валован.  ",1,20]
[" Гренки хлеб черный  ",60,7]
[" Лаваш армянский  ",1,0.25]
[" ПИРОЖКИ С КУХНИ  "," "," "]
[" Беляши  с мясом  ",80,50]
[" Булочка   \"Домашняя\".  ",75,25]
[" Булочка  КОРОВКА  ","50",35]
[" Булочка с изюмом  ",50,25]
[" Булочка с марципаном.  ","50",45]
[" Ватрушка \"Венгерская\"  ",60,40]
[" Ватрушка с повидлом  ",75,25]
[" Ватрушка с творогом...  ",75,35]
[" мини-пирожок   с вишней  ",30,30]
[" мини-пирожок   с мясом.  ",30,30]
[" Пасхальный кулич.  ",1,60]
[" Пирожки  с капустой и яйцом.  ",50,25]
[" Пирожки  с рисом и яйцом.  ",50,25]
[" Пирожки  с яйцом и з/луком.  ",50,25]
[" Пирожок с вишней.  ",50,40]
[" Пирожок с грибами.  ",50,40]
[" Пирожок с капустой.  ",50,25]
[" Пирожок с картошкой и грибами   ",50,35]
[" Пирожок с картошкой.  ",50,25]
[" Пирожок с курагой.  ",50,25]
[" Пирожок с маком.  ",50,25]
[" Пирожок с мясом.  ",50,40]
[" Пирожок с повидлом.  ",50,25]
[" Пирожок с яблоками.  ",50,25]
[" Пицца Мясное ассорти  ","1/1000",500]
[" Пицца Мясное ассорти (800 руб)  ","1/1500",800]
[" Пицца Овощная  ","1/1000",500]
[" Пицца по -Милански  ","1/1000",400]
[" Плюшка с грушей  ",100,30]
[" Плюшка с корицей  ","50",25]
[" Плюшка с маком  ","50",25]
[" Пончики из творога  ",50,40]
[" Розочки из слоёного теста(Кухня)  ",60,35]
[" Рулет с апельсиново-кокосовой начинкой   ",50,30]
[" Рулет с изюмом(Кухня)  ",50,30]
[" Самса с курицей(Кухня)  ",100,50]
[" Слойка с капустой и грибами  ",60,40]
[" Слойка с картошкой  ",60,30]
[" Слойка с творогом(Кухня)  ",60,35]
[" Слойка с яблоком (Кухня)  ",60,30]
[" Сосиска в тесте  ",120,90]
[" Тарталетка под салат.  ",30,20]
[" Тесто для костра  ",1000,250]
[" Хачапури  ",60,45]
[" ПИРОЖНЫЕ С КУХНИ  "," "," "]
[" \"Подмосковные  вечера\"к  ",50,30]
[" \"Рафаэлло\".  ",70,40]
[" Бантики   слоеные.  ",50,30]
[" Безе  ",30,30]
[" вишенка.  ",50,50]
[" воздушное с кремом..  ",50,45]
[" Десерт с кокосом .  ",80,35]
[" Десерт с шоколадом .  ",80,35]
[" картошка .  ",50,25]
[" кекс столичный.  ",50,30]
[" кекс творожный с кокосовой стружкой.  ",50,30]
[" кекс творожный.  ",50,35]
[" Кольцо песочное.  ",48,30]
[" Корж   молочный.  ",90,30]
[" корзинка с белковым кремом.  ",54,40]
[" корзинка фруктовая..  ",80,40]
[" Лакомка слоёная .  ",35,30]
[" мандаринка..  ",50,50]
[" орехово-кофейное..  ",50,50]
[" орешек заварной.  ",50,45]
[" полоска песочная..  ",75,45]
[" Розан с ананасом(Кухня)  ",100,55]
[" Розан с вишней(Кухня)  ",50,55]
[" Розан с вишней(Кухня)ДЕТИ  ",50,25]
[" Розан с персиком(Кухня)  ",100,55]
[" Розан с яблоком(Кухня)  ",100,50]
[" рулет  \"Бисквитный\"  ",75,40]
[" рулет  с кокосовой  стружкой   ",50,40]
[" рулет \"Сластена\"/  ",75,50]
[" рулет \"Чешский\"..  ",100,75]
[" сочник с творогом.  ",110,50]
[" Трубочка с кремом.  ","20",40]
[" эклер с заварным кремом..  ",65,45]
[" Тарталетка.  ",1,27]
[" ТОРТЫ С КУХНИ  "," "," "]
[" Батон.  ",1,35]
[" Каравай на заказ  ",1000,600]
[" Торт  \"Вишневый.\"  ","1/100",70]
[" Торт  \"Сметанный\"  ","1/100",60]
[" Торт \"Ореховый\"(КУХНЯ)  ","1/100",100]
[" Торт на  заказ  ",1000,"1 000,00 "]
[" Торт на заказ (Бисквитный)  ",1000,"1 000,00 "]
[" Торт на заказ (Битое стекло)  ",1000,"1 000,00 "]
[" Французская булка  ",2,50]
[" Хлеб белый/черный   ",48,10]
[" ШОКОЛАД  "," "," "]
[" Батончик Cпринт  ",1,25]
[" Батончик Cупер  ",1,25]
[" Батончик gets  ",1,20]
[" Батончик Бон Тайм  ",1,25]
[" Батончик Чио Рио  ",1,20]
[" Батончик Ярче  ",1,25]
[" Бисквит Babyfox  ",1,20]
["  Вафли Джумка  ",1,30]
[" Вафли Зебра  ",1,30]
[" Вафли Коровка (150 г.)  ",1,50]
[" Вафли Твист  ",1,25]
[" Вафли ХрусТус  ",1,25]
[" Круассан.  ",1,25]
[" Мини-рулет  ",1,25]
[" Оладушки Яшкино  ",1,20]
[" Печенье Юбилейное  ",1,80]
[" Пирожное Аленка  ",1,25]
[" Пирожное со сгущенкой  ",1,20]
[" Русский бисквит.  ",1,25]
[" Чоко-пай../к  ",1,25]
[" шоколад \"Аленка\" 1/15  ",1,30]
[" шоколад \"Баунти\".  ",1,50]
[" шоколад \"Марс\".  ",1,50]
[" шоколад \"Сникерс\".  ",1,50]
[" шоколад \"Твикс\".  ",1,50]
[" Шоколад Бабаевский  ",1,40]
[" Брынза.  ",1,1.4]
[" Йогурт  питьевой  ",1,0.13]
[" Йогурт.  ","1/125",50]
[" Кефи  ",1,0.2]
[" Масло сливочное  ",15,40]
[" Молоко.  ",200,40]
[" Ряженка.  ",1,0.2]
[" Сливки-спрей.  ",50,65]
[" Сливки порционные.  ",1,10]
[" Сметана  порц. 200 г  ",200,100]
[" Сыр Пармезан.  ",1,3.24]
[" Сыр Сулугуни.  ",1,1.43]
[" Сыр 1/2+масло  ","50/15",90]
[" Сыр  ",50,100]
[" Сырная тарелка   ",185,250]
[" Сырок глазированый.  ",14611,30]
[" Творог с сахаром и сметаной.  ",170,100]
[" Компот из сухофруктов (С)  ",200,15]
[" вода минеральная 0,5..к  ",1,60]
[" вода Нарзан 1/0.5.к  ","1/0,5",100]
[" вода питьевая 19 л.  ",1,300]
[" Глинтвейн (ПОРЦИЯ)  ",200,150]
[" Какао с молоком  ",150,30]
[" Кофе растворимый с сахаром   ","150/15",45]
[" Кофе растворимый с сахаром и лимоном  ","150/15/9",45]
[" Кофе растворимый.к  ",1,6.17]
[" Напиток вишнёво-грушевый  ",200,25]
[" Напиток вишневый.  ",200,25]
[" Напиток грушевый  ",200,25]
[" Напиток из клюквы  ",200,50]
[" Напиток из кураги.  ",200,30]
[" Напиток из слив.  ",200,25]
[" Напиток из яблока с изюмом  ",200,25]
[" Напиток персиковый  ",200,25]
[" Напиток яблочно-апельсиновый  ",200,25]
[" Напиток яблочно-вишнёвый  ",200,25]
[" Напиток яблочно-ежевичный  ",200,25]
[" Напиток яблочно-клубничный  ",200,25]
[" Напиток яблочно-клюквенный  ",200,35]
[" Напиток яблочно-лимонный  ",200,25]
[" Напиток яблочно-малиновый   ",200,25]
[" Напиток яблочно-смородиновый  ",200,25]
[" Сахар-рафинад.  ",1,0.12]
[" Сахар песок.  ",1,0.24]
[" Чай зеленый пакет.  ",1,15]
[" Чай черный пакет.  ",1,15]
[" НАПОЛНИТЕЛИ   "," "," "]
[" Джем  ",50,60]
[" Джем(шт)  ",1,7]
[" Мед (шт)  ",1,11]
[" Мед к  ",50,60]
[" Сгущенное молоко  ",50,50]
[" Сметана  50 г  ",50,20]
[" ОВОЩИ + масло растит  "," "," "]
[" Базилик.  ",1,1.85]
[" Баклажаны.  ",1,0.25]
[" З/горошек консервированный.  ",1,0.5]
[" Зелень.  ",1,1]
[" Кабачки.  ",1,0.15]
[" Капуста квашенная.  ",1,0.2]
[" Капуста св.  ",1,0.5]
[" Картофель.  ",1,0.08]
[" Кинза.  ",1,0.13]
[" Кукуруза консервированная.  ",1,0.4]
[" Лук зеленый.  ",1,0.5]
[" Лук репчатый.  ",1,0.08]
[" Масло растительное.  ",1,0.22]
[" Морковь (Олени).  ",1,0.17]
[" Морковь.  ",1,0.08]
[" Огурцы свежие.  ",1,0.5]
[" Огурцы соленые.  ",1,0.24]
[" Перец свежий.  ",1,0.4]
[" Помидоры свежие.  ",1,0.5]
[" Помидоры Черри.  ",1,0.7]
[" Редис.  ",1,0.8]
[" Салат.  ",1,1.2]
[" Салат.Асберг  ",1,1.2]
[" Тыква.  ",1,0.3]
[" Чеснок.  ",1,0.7]
[" Cалат со свеклой  картофелем и фасолью  ","150/1",70]
[" Винегрет  ","150/1",70]
[" Винегрет с сельдью  ","100/50",100]
[" Овощной букет с редиской  ",200,190]
[" Салат  \"Весенний бриз\"  ",150,100]
[" Салат  вег \"Оливье\"  ","150/1",70]
[" Салат  вег \"Оливье\"с маслом   ","150/1",70]
[" Салат  из моркови и зел. горошка  ","150/1",70]
[" Салат \"Весенний\"  ",150,80]
[" Салат \"Греческий\"  ","150/1",150]
[" Салат \"Елена\"  ","150/1",120]
[" Салат \"Елена\" с маслом   ","150/1",120]
[" Салат \"Застольный\"  ",150,70]
[" Салат \"Нестор\"  ",150,80]
[" Салат \"Нестор\" с ветчиной  ",150,80]
[" Салат \"Нестор\"(Без колбасы)  ",150,80]
[" Салат \"Николь\"  ",150,120]
[" Салат \"Овощной\"(без болг.перца)  ",150,100]
[" Салат \"Приятный\"  ",150,70]
[" Салат \"Приятный\" с маслом  ",150,70]
[" Салат \"Солнечный\" с майонезом  ",150,80]
[" Салат \"Солнечный\" с маслом   ",150,90]
[" Салат \"Студенческий\"  ",150,70]
[" Салат \"Фантазия\"  ",150,100]
[" Салат \"Фермерский\"  ",150,110]
[" Салат \"Французский\"  ",150,120]
[" Салат \"Яичный \"  ",150,85]
[" Салат из кит.капусты с ветчиной  ",150,100]
[" Салат из кит.капусты с краб. мясом  ",150,100]
[" Салат из кит.капусты со св. огурцом  ",150,70]
[" Салат из кит.капусты со св. огурцом и кукурузы  ",150,85]
[" Салат из кит.капусты со св. помидором   ",150,70]
[" Салат из кукурузы с перцем  ",150,90]
[" Салат из моркови с чесноком  ","150/1",50]
[" Салат из моркови с чесноком и грецким орехом  ","150/1",80]
[" Салат из моркови с яблоками  ","150/1",50]
[" Салат из св. моркови с изюмом и раст. маслом  ",150,50]
[" Салат из св. ов. с маслом и репч. л.  ","150/1",70]
[" Салат из св. пом. с зел.луком и растит  маслом   ",150,75]
[" Салат из св. пом. с репч.луком и растит  маслом   ",150,75]
[" Салат из св. пом. с сыром  ",150,95]
[" Салат из св.огурцов с растит. мас.   ",150,75]
[" Салат из св.помид с  растит  маслом   ",150,75]
[" Салат из свеж. капусты  со свеклой с  раст.маслом  ",160,65]
[" Салат из свеж. капусты с  майонезом  ","150/1",60]
[" Салат из свеж. капусты с  растител.  ","150/1",60]
[" Салат из свеж. капусты с зелёным горошком  ","150/1",70]
[" Салат из свеж. капусты с яйцом  ","150/1",80]
[" Салат из свежей капусты с огурцами   ","150/1",100]
[" Салат из свежей капусты с помидорами   ","150/1",100]
[" Салат из свежих овощей со сметаной.  ","160/40/1",100]
[" Салат из свежих овощей(Дети)  ","150/1",100]
[" Салат из свежих овощей  ","150/1",100]
[" Салат из свеклы с сыром  (майонез)  ","150/1",100]
[" Салат из свеклы с сыром (растит. масло)  ","150/1",100]
[" Салат из свеклы с черносливом с маслом  ","200/1",100]
[" Салат из свеклы с черносливом  ","200/1",100]
[" Салат из туш.. капусты с  растит.м.  ","150/1",80]
[" Салат из фасоли с помидорами   ",150,75]
[" Салат карт. с зел.горошком и майонезом  ",150,95]
[" Салат карт. с зел.горошком и раст.маслом  ",150,95]
[" Салат картофельный с овощами  ",150,80]
[" Салат с гренками  ",150,100]
[" Салат с перепелиным яйцом  ",150,90]
[" Салат с рисом   ","150/1",75]
[" Салат с рисом и огурцом  ","150/1",75]
[" Свежие овощи 50/50.  ",100,80]
[" Салат Петровский   ",150,200]
[" Салат из кит.капусты с ку грудкой  ",150,100]
[" Салат из курицы  ",150,120]
[" Салат овощной с курицей  ",150,120]
[" Салат с ветчиной и фасолью  ",150,100]
[" Салат картофельный с сельдью  ","100/50",110]
[" Салат с кальмарами и ананасами   ",150,200]
[" Салат с кальмарами  ",150,200]
[" Салат с крабовым мясом и помидорами  ",150,100]
[" Салат с крабовыми палочками  ",150,100]
[" Салат с крабовыми палочками с кукурузой  ",150,100]
["  Сок в ассортименте 1/200  ","1/200",30]
[" Соки в ассортименте 1л.  ",1000,160]
[" Соус кетчуп (Кухня)  ",50,30]
[" Соус майонез  ",50,30]
[" Cуп из брокколи и омлета  ",300,120]
[" Борщ \"Московский\" c майонезом  ","300/30/2",170]
[" Борщ \"Московский\" со сметаной  ","300/30/2",170]
[" Борщ (вегетарианский)  ","300/2",80]
[" Бульон  ","300\\3",100]
[" Бульон с гренками  ","400/60/2",100]
[" Бульон с пельменями  ","400/2",180]
[" Бульон с яйцом  ","400/3",100]
[" Похлебка из семги  ","300/2",250]
[" Рассольник \"Петербургский\".  ","300\\2",120]
[" Рассольник \"Петербургский\".из курицы  ","300\\2",100]
[" Солянка мясная сборная  ","400/30/2",250]
[" Суп-крем из тыквы  ",300,120]
[" Суп-пюре из картофеля  ",300,110]
[" Суп-пюре из шампиньонов  ",300,140]
[" Суп-харчо из говядины  ","300/1",140]
[" Суп - лапша грибная  ","300/10/2",100]
[" Суп - лапша с окорочками   ","300/2",100]
[" Суп -пюре из разных овощей  ",300,120]
[" Суп  картофельный  без курицы  ","300/2",80]
[" Суп  картофельный с   курицей  ","300/2",100]
[" Суп  картофельный с   окорочками  ","300/2",100]
[" Суп  картофельный с рисом и курицей  ","300/2",100]
[" Суп  картофельный с фасолью  ","300/2",100]
[" Суп  с  курицей и вермишелью  ","300/2",100]
[" Суп гороховый  ","300/2",120]
[" Суп гороховый вегетарианский  ","300\\3",70]
[" Суп гороховый из окорочков  ","300/2",140]
[" Суп картоф. с фрикадельками на ку бульоне  ","300/60/2",110]
[" Суп картофельный с грибами  ","300/2",150]
[" Суп картофельный с фрикадельками  ","300/60/2",140]
[" Уха \"Рыбацкая\" с помидорами  ","300/2",310]
[" Щи из свежей кап. со сметаной на курином бульоне  ","300/30/2",130]
[" Щи из свежей капусты  вег.  ","300/2",70]
[" Щи из свежей капусты с майонезом  ","300/30/2",150]
[" Щи из свежей капусты со сметаной  ","300/30/2",150]
[" Бутерброд с  колбасой докторской.  ","50/25/1",50]
[" Бутерброд с бужениной  ","30/25",90]
[" Бутерброд с икрой.  ","30/25",190]
[" Бутерброд с маслом.  ","30/15",35]
[" Бутерброд с семгой.  ","30/20/10",120]
[" Бутерброд с сыром и маслом.  ","30/25/10",60]
[" Бутерброд с сыром.  ","30/25",45]
[" Бутерброды с ветчиной.  ","30/25/1",55]
[" Бутерброды с п/к колбасой.  ","30/25/1",60]
[" Бутерброды с шейкой в/к  ","30/25/1",60]
[" Ветчина .  ",50,60]
[" Ветчина со свежими огурцами.  ","50/25",70]
[" Колбаса докторская..к  ",50,60]
[" Колбаса п/к..к  ","50/1",60]
[" Колбаса с/к  ",25,70]
[" Помидоры фаршированные   сыром.  ",150,150]
[" Чай зеленый с сахаром и лимоном  ","150/15/9",30]
[" Чай черный с сахаром и лимоном  ","150/15/10",30]
[" Ветчина 1/2+масло","25/15",75]
[" Колбаса 1/2+масло","25/15",70]
[" "," "," "]
[" "," "," "]
[" "," "," "]
[" "," "," "]
[" "," "," "]
[" "," "," "]
[" "," "," "]
[" "," "," "]
[" "," "," "]
[" "," "," "]
[" "," "," "]
[" "," "," "]
[" "," "," "]
[" "," "," "]
[" "," "," "]
[" "," "," "]
[" "," "," "]
[" "," "," "]
[" "," "," "]
[" "," "," "]
[" "," "," "]
[" "," "," "]
[" "," "," "]
[" "," "," "]
[" "," "," "]
[" "," "," "]
[" "," "," "]
[" "," "," "]
[" "," "," "]
[" "," "," "]
[" "," "," "]
[" "," "," "]
[" "," "," "]
[" "," "," "]
[" "," "," "]
[" "," "," "]
[" "," "," "]
[" "," "," "]
[" "," "," "]
[" "," "," "]
[" "," "," "]
[" "," "," "]
[" "," "," "]
[" "," "," "]
[" "," "," "]

{"sheet":"Меню групп","index":1,"n_rows":40,"n_cols":5,"rows_kept":40,"cut":false,"hidden":false,"merged":[]}
[null,"МЕНЮ","2019-11-03"]
["Завтрак",null,null,15,"чел"]
["Наименование","Вес / гр.","Цена / руб.","Кол-во порций","Итого"]
[" Омлет с сосисками",{"$f":"IFERROR(VLOOKUP(A4,БАЗА!A:C,2,0),)","v":"110/55"},{"$f":"IFERROR(VLOOKUP(A4,БАЗА!A:C,3,0),)","v":120},{"$f":"D2","v":15},{"$f":"C4*D4","v":1800}]
[null,{"$f":"IFERROR(VLOOKUP(A5,БАЗА!A:C,2,0),)","v":0},{"$f":"IFERROR(VLOOKUP(A5,БАЗА!A:C,3,0),)","v":0},{"$f":"D2","v":15},{"$f":"D5*C5","v":0}]
[" Паста \"Карбонара\"  ",{"$f":"IFERROR(VLOOKUP(A6,БАЗА!A:C,2,0),)","v":300},{"$f":"IFERROR(VLOOKUP(A6,БАЗА!A:C,3,0),)","v":300},{"$f":"D2","v":15},4500]
[" Рис со специями 300 гр  ",{"$f":"IFERROR(VLOOKUP(A7,БАЗА!A:C,2,0),)","v":300},{"$f":"IFERROR(VLOOKUP(A7,БАЗА!A:C,3,0),)","v":95},{"$f":"D2","v":15},1425]
[null,{"$f":"IFERROR(VLOOKUP(A8,БАЗА!A:C,2,0),)","v":0},{"$f":"IFERROR(VLOOKUP(A8,БАЗА!A:C,3,0),)","v":0},{"$f":"D2","v":15},{"$f":"D8*C8","v":0}]
[null,{"$f":"IFERROR(VLOOKUP(A9,БАЗА!A:C,2,0),)","v":0},{"$f":"IFERROR(VLOOKUP(A9,БАЗА!A:C,3,0),)","v":0},{"$f":"D2","v":15},0]
[null,{"$f":"IFERROR(VLOOKUP(A10,БАЗА!A:C,2,0),)","v":0},{"$f":"IFERROR(VLOOKUP(A10,БАЗА!A:C,3,0),)","v":0},{"$f":"D2","v":15},0]
["ИТОГО",null,null,null,{"$f":"SUM(E4:E10)","v":7725}]
["Сумма на 1 человека",null,null,null,{"$f":"E11/D2","v":515}]
["Обед",null,{"$f":"C1","v":"2019-11-03"},15,"чел"]
["Наименование","Вес / гр.","Цена / руб.","Кол-во порций","Итого"]
[null,{"$f":"IFERROR(VLOOKUP(A15,БАЗА!A:C,2,0),)","v":0},{"$f":"IFERROR(VLOOKUP(A15,БАЗА!A:C,3,0),)","v":0},{"$f":"D13","v":15},{"$f":"C15*D15","v":0}]
[null,{"$f":"IFERROR(VLOOKUP(A16,БАЗА!A:C,2,0),)","v":0},{"$f":"IFERROR(VLOOKUP(A16,БАЗА!A:C,3,0),)","v":0},{"$f":"D13","v":15},{"$f":"C16*D16","v":0}]
[null,{"$f":"IFERROR(VLOOKUP(A17,БАЗА!A:C,2,0),)","v":0},{"$f":"IFERROR(VLOOKUP(A17,БАЗА!A:C,3,0),)","v":0},{"$f":"D13","v":15},0]
[null,{"$f":"IFERROR(VLOOKUP(A18,БАЗА!A:C,2,0),)","v":0},{"$f":"IFERROR(VLOOKUP(A18,БАЗА!A:C,3,0),)","v":0},{"$f":"D13","v":15},0]
[null,{"$f":"IFERROR(VLOOKUP(A19,БАЗА!A:C,2,0),)","v":0},{"$f":"IFERROR(VLOOKUP(A19,БАЗА!A:C,3,0),)","v":0},{"$f":"D13","v":15},0]
[null,{"$f":"IFERROR(VLOOKUP(A20,БАЗА!A:C,2,0),)","v":0},{"$f":"IFERROR(VLOOKUP(A20,БАЗА!A:C,3,0),)","v":0},{"$f":"D13","v":15},0]
[null,{"$f":"IFERROR(VLOOKUP(A21,БАЗА!A:C,2,0),)","v":0},{"$f":"IFERROR(VLOOKUP(A21,БАЗА!A:C,3,0),)","v":0},{"$f":"D13","v":15},0]
["ИТОГО",null,null,null,{"$f":"SUM(E15:E21)","v":0}]
["Сумма на 1 человека",null,null,null,{"$f":"E22/D13","v":0}]
["Полдник",null,{"$f":"C1","v":"2019-11-03"},15,"чел"]
["Наименование","Вес / гр.","Цена / руб.","Кол-во порций","Итого"]
[null,{"$f":"IFERROR(VLOOKUP(A26,БАЗА!A:C,2,0),)","v":0},{"$f":"IFERROR(VLOOKUP(A26,БАЗА!A:C,3,0),)","v":0},{"$f":"D24","v":15},{"$f":"C26*D26","v":0}]
[null,{"$f":"IFERROR(VLOOKUP(A27,БАЗА!A:C,2,0),)","v":0},{"$f":"IFERROR(VLOOKUP(A27,БАЗА!A:C,3,0),)","v":0},{"$f":"D24","v":15},{"$f":"C27*D27","v":0}]
["ИТОГО",null,null,null,{"$f":"SUM(E22:E27)","v":0}]
["Сумма на 1 человека",null,null,null,{"$f":"E28/D20","v":0}]
["УЖИН",null,{"$f":"C1","v":"2019-11-03"},15,"чел"]
["Наименование","Вес / гр.","Цена / руб.","Кол-во порций","Итого"]
[null,{"$f":"IFERROR(VLOOKUP(A32,БАЗА!A:C,2,0),)","v":0},{"$f":"IFERROR(VLOOKUP(A32,БАЗА!A:C,3,0),)","v":0},{"$f":"D30","v":15},{"$f":"C32*D32","v":0}]
[null,{"$f":"IFERROR(VLOOKUP(A33,БАЗА!A:C,2,0),)","v":0},{"$f":"IFERROR(VLOOKUP(A33,БАЗА!A:C,3,0),)","v":0},{"$f":"D30","v":15},{"$f":"D33*C33","v":0}]
[null,{"$f":"IFERROR(VLOOKUP(A34,БАЗА!A:C,2,0),)","v":0},{"$f":"IFERROR(VLOOKUP(A34,БАЗА!A:C,3,0),)","v":0},{"$f":"D30","v":15},0]
[null,{"$f":"IFERROR(VLOOKUP(A35,БАЗА!A:C,2,0),)","v":0},{"$f":"IFERROR(VLOOKUP(A35,БАЗА!A:C,3,0),)","v":0},{"$f":"D30","v":15},0]
[null,{"$f":"IFERROR(VLOOKUP(A36,БАЗА!A:C,2,0),)","v":0},{"$f":"IFERROR(VLOOKUP(A36,БАЗА!A:C,3,0),)","v":0},{"$f":"D30","v":15},{"$f":"C36*D36","v":0}]
[null,{"$f":"IFERROR(VLOOKUP(A37,БАЗА!A:C,2,0),)","v":0},{"$f":"IFERROR(VLOOKUP(A37,БАЗА!A:C,3,0),)","v":0},{"$f":"D30","v":15},0]
[null,{"$f":"IFERROR(VLOOKUP(A38,БАЗА!A:C,2,0),)","v":0},{"$f":"IFERROR(VLOOKUP(A38,БАЗА!A:C,3,0),)","v":0},{"$f":"D30","v":15},0]
["Итого",null,null,null,{"$f":"SUM(E32:E36)","v":0}]
["Итого на одного человека ",null,null,null,{"$f":"E39/D30","v":0}]

{"sheet":"Лист2","index":2,"n_rows":0,"n_cols":0,"rows_kept":0,"cut":false,"hidden":false,"merged":[]}